{"text_format":"1","workbook":"xlsx","n_sheets":1,"sheets":["Pomocniczy sprzęt laboratoryjny"],"not_rendered":{"charts":0,"images":0,"macros":1,"external_links":0,"defined_names":0,"comments":0,"pivot_tables":0},"unopened":[],"bounds":{"document_bytes":16777216,"sheet_cells":100000,"rows_first":2000,"rows_last":500,"rows_between":2000,"halvings":0,"cell_chars":16384,"cell_head_chars":4096},"cells_cut":0,"cells_raw":0,"read":"whole","date_system":"1900"}

{"sheet":"Pomocniczy sprzęt laboratoryjny","index":0,"n_rows":10,"n_cols":12,"rows_kept":10,"cut":false,"hidden":false,"merged":[[0,0,0,9],[0,10,0,11],[9,0,9,6],[9,10,9,11]]}
["KALKULACJA CENOWA\nPomocniczy sprzęt laboratoryjny. DSL",null,null,null,null,null,null,null,null,null,"Załącznik nr 2"]
["Lp.\n\n[a]","Opis przedmiotu zamówienia\n(wymagania / parametry jakościowe / parametry techniczne)\n[b]","JM\n\n[c]","CPV\n\n[d]","Ilość\n\n[e]","Cena jedn.\nnetto\n[f]","VAT\n(%)\n[g]","Wartość\nnetto\n[h]","Wartość\nbrutto\n[i]","Wartość\nVAT\n[j]","Proponowany\nnr kat.\n[k]","Producent\n\n[l]"]
[1,"Filtr MiLLiPAK EXPRESS 40 nr kat. MPGP04001\n\n","szt","36712000-5",1,null,null,{"$f":"F3*E3","v":0},{"$f":"H3+H3*G3/100","v":0},{"$f":"E3*F3*G3/100","v":0}]
[2,"Filtr oddechowy do zbiornika polietylenowego Nr kat. TANKMPK01\n\n","szt","36712100-6",2,null,null,{"$f":"F4*E4","v":0},{"$f":"H4+H4*G4/100","v":0},{"$f":"E4*F4*G4/100","v":0}]
[3,"Filtr wstępnego oczyszczania do zestawu Millipore, Nr kat. JAPLPK001\n\n","szt","36712000-5",5,null,null,0,0,0]
[4,"Korki sprężynowe do probówek o średnicy zewn. 12-13 mm, kolor srebrny\n\n","szt","",500,null,null,0,0,0]
[5,"Wkład PROGARD TS2 do ELIX-10 Millipore Nr katalogowy PROGOTOS2\n\n","szt","36712100-6",3,null,null,0,0,0]
[6,"Wkład Q-GARD T1 PACK nr kat. QGARDT1x1\n\n","szt","36712100-6",1,null,null,0,0,0]
[7,"Wkład QANTUM TEX CARTRIDGE nr kat. QTUMOTEX1\n\n","szt","36712100-6",1,null,null,0,0,0]
["RAZEM",null,null,null,null,null,null,{"$f":"SUM(H3:H9)","v":0},{"$f":"SUM(I3:I9)","v":0},{"$f":"SUM(J3:J9)","v":0}]